lending/lending_fUSD_20250808
["ID","MTS","AMOUNT","RATE_DAILY","PERIOD"]
[377992199,1754652635913,-400.0,0.00018765,2]
[377992200,1754652635923,-400.0,0.00018765,2]
[377992201,1754652635932,-1239.41,0.00018765,2]
[377992202,1754652635942,-962.0,0.00018765,2]
[377992203,1754652635951,-400.0,0.00018765,2]
[377992204,1754652635961,-400.0,0.00018765,2]
[377992205,1754652635970,-400.0,0.00018765,2]
[377992206,1754652635979,-732.45,0.00018765,2]
[377992207,1754652635988,-438.94,0.00018765,2]
[377992208,1754652635997,-729.14,0.00018765,2]
[377992209,1754652636007,-400.0,0.00018765,2]
[377992210,1754652636016,-909.97,0.00018765,2]
[377992211,1754652636026,-676.45,0.00018765,2]
[377992212,1754652636035,-400.0,0.00018765,2]
[377992213,1754652636044,-400.0,0.00018765,2]
[377992214,1754652636054,-400.0,0.00018765,2]
[377992215,1754652636063,-798.27,0.00018765,2]
[377992216,1754652636072,-482.39,0.00018765,2]
[377992217,1754652636081,-400.0,0.00018765,2]
[377992218,1754652636091,-400.0,0.00018765,2]
[377992219,1754652636101,-478.12,0.00018765,2]
[377992220,1754652636110,-400.0,0.00018765,2]
[377992221,1754652636119,-400.0,0.00018765,2]
[377992222,1754652636129,-924.84,0.00018765,2]
[377992223,1754652636138,-515.45,0.00018765,2]
[377992224,1754652636148,-400.0,0.00018765,2]
[377992225,1754652636157,-400.0,0.00018765,2]
[377992226,1754652636167,-400.0,0.00018765,2]
[377992227,1754652636176,-638.43,0.00018765,2]
[377992228,1754652636185,-400.0,0.00018765,2]
[377992229,1754652636195,-613.26,0.00018765,2]
[377992230,1754652636204,-400.0,0.00018765,2]
[377992231,1754652636337,-670.31,0.00018765,2]
[377992232,1754652636362,-400.0,0.00018765,2]
[377992233,1754652636371,-400.0,0.00018765,2]
[377992234,1754652636381,-1152.12,0.00018765,2]
[377992235,1754652636391,-404.26,0.00018765,2]
[377992236,1754652636401,-1092.05,0.00018765,2]
[377992237,1754652636410,-400.0,0.00018765,2]
[377992238,1754652636420,-676.15,0.00018765,2]
[377992239,1754652636429,-400.0,0.00018765,2]
[377992240,1754652636439,-400.0,0.00018765,2]
[377992241,1754652636449,-564.57,0.00018765,2]
[377992242,1754652636458,-400.0,0.00018765,2]
[377992243,1754652636468,-579.15,0.00018765,2]
[377992244,1754652636477,-400.0,0.00018765,2]
[377992245,1754652636487,-400.0,0.00018765,2]
[377992246,1754652636497,-852.25,0.00018765,2]
[377992247,1754652636506,-400.0,0.00018765,2]
[377992248,1754652636516,-694.93,0.00018765,2]
[377992249,1754652636525,-400.0,0.00018765,2]
[377992250,1754652636535,-400.0,0.00018765,2]
[377992251,1754652636544,-400.0,0.00018765,2]
[377992252,1754652636554,-790.4,0.00018765,2]
[377992253,1754652636564,-454.12,0.00018765,2]
[377992254,1754652636573,-715.78,0.00018765,2]
[377992255,1754652636583,-400.0,0.00018765,2]
[377992256,1754652636592,-400.0,0.00018765,2]
[377992257,1754652636602,-466.77,0.00018765,2]
[377992258,1754652636613,-400.0,0.00018765,2]
[377992259,1754652636625,-400.0,0.00018765,2]
[377992260,1754652636635,-400.0,0.00018765,2]
[377992261,1754652636644,-400.0,0.00018765,2]
[377992262,1754652636654,-400.0,0.00018765,2]
[377992263,1754652636663,-646.9,0.00018765,2]
[377992264,1754652636672,-915.37,0.00018765,2]
[377992265,1754652636681,-729.17,0.00018765,2]
[377992266,1754652636692,-400.0,0.00018765,2]
[377992267,1754652636702,-941.3,0.00018765,2]
[377992268,1754652636712,-1025.63,0.00018765,2]
[377992269,1754652636722,-400.0,0.00018765,2]
[377992270,1754652636733,-496.64,0.00018765,2]
[377992271,1754652636742,-1456.93,0.00018765,2]
[377992272,1754652636752,-1050.71,0.00018765,2]
[377992273,1754652636762,-1067.09,0.00018765,2]
[377992274,1754652636771,-1172.41,0.00018765,2]
[377992275,1754652636781,-1134.94,0.00018765,2]
[377992276,1754652636790,-1386.39,0.00018765,2]
[377992277,1754652636800,-400.0,0.00018765,2]
[377992278,1754652636809,-899.12,0.00018765,2]
[377992279,1754652636819,-893.91,0.00018765,2]
[377992280,1754652636828,-5483.9,0.00018765,2]
[377992281,1754652636838,-1085.85,0.00018766,2]
[377992282,1754652636848,-1051.94,0.00018766,2]
[377992283,1754652636858,-771.25,0.00018766,2]
[377992284,1754652636868,-198.89589987,0.000188,2]
[377992285,1754652636877,-1500.0,0.000188,6]
[377992286,1754652636887,-542.42175863,0.00018812,2]
[377992287,1754652636897,-4014.63419905,0.00018846,2]
[377992288,1754652636907,-1900.0,0.000189,6]
[377992289,1754652636916,-1263.64137958,0.000189,2]
[377992290,1754652636927,-157.72153449,0.00018904,2]
[377992291,1754652636936,-609.69479308,0.00018929,2]
[377992292,1754652636945,-1723.23208436,0.00018929,2]
[377992293,1754652636955,-4014.63419905,0.00018938,2]
[377992294,1754652636965,-500.0,0.0001898,2]
[377992295,1754652636975,-500.0,0.0001898,2]
[377992296,1754652636985,-500.0,0.0001899,2]
[377992297,1754652636996,-842.44706758,0.0001899,2]
[377992298,1754652637007,-211.62674257,0.00018991,2]
[377992299,1754652637017,-457.64618948,0.00018991,2]
[377992300,1754652637027,-1950.03,0.00018997,2]
[377992301,1754652637037,-400.0,0.00018997,2]
[377992302,1754652637047,-1453.49,0.00018997,2]
[377992303,1754652637057,-1116.58,0.00018997,2]
[377992304,1754652637068,-917.17,0.00018997,2]
[377992305,1754652637079,-790.19,0.00018997,2]
[377992306,1754652637090,-473.27,0.00018997,2]
[377992307,1754652637100,-2322.38,0.00018997,2]
[377992308,1754652637110,-825.172,0.00018999,2]
[377992309,1754652637122,-1534.37,0.00019,2]
[377992310,1754652637132,-152.962,0.00019,2]
[377992311,1754652637142,-133236.54293072,0.00019,2]
[377992312,1754652637633,-117321.67713387,0.00019,2]
[377992313,1754652637645,-445392.88532719,0.00019,2]
[377992314,1754652637659,-2619.4367889,0.00019,2]
[377992315,1754652637673,-570.09,0.00019,2]
[377992316,1754652637697,-2680.0,0.00019,2]
[377992317,1754652637717,-2428.49088079,0.00019,2]
[377992318,1754652637731,-612.8711956,0.00019,2]
[377992319,1754652637747,-1486.34559054,0.00019,2]
[377992320,1754652637764,-7900.96099318,0.00019,2]
[377992321,1754652637775,-1006.13428738,0.00019,2]
[377992322,1754652637799,-326.33655484,0.00019,2]
[377992323,1754652639324,-2577.93564495,0.00018764,2]
[377992324,1754652639336,-668.0117373,0.00018764,2]
[377992325,1754652639347,-999.2323264,0.00018764,2]
[377992365,1754652640218,-1176.42692165,0.00018665,2]
[377992369,1754652643118,-3283.54123297,0.00018665,2]
[377992388,1754652646034,-284.48229828,0.00018665,2]
[377992389,1754652646197,-844.6505,0.00018665,2]
[377992390,1754652646207,-2182.91516955,0.00018665,2]
[377992391,1754652646217,-6927.36562239,0.00018694,2]
[377992392,1754652646226,-717.56,0.00018762,2]
[377992393,1754652646236,-1155.91,0.00018762,2]
[377992394,1754652646245,-400.0,0.00018763,2]
[377992395,1754652646254,-400.0,0.00018763,2]
[377992396,1754652646263,-400.0,0.00018763,2]
[377992397,1754652646273,-400.0,0.00018763,2]
[377992398,1754652646282,-412.41,0.00018763,2]
[377992399,1754652646291,-532.15,0.00018763,2]
[377992400,1754652646301,-6026.05029135,0.00018764,2]
[377992401,1754652646309,-1222.18,0.00018764,2]
[377992402,1754652646318,-649.7,0.00018764,2]
[377992403,1754652646326,-743.33,0.00018764,2]
[377992404,1754652646335,-642.36,0.00018764,2]
[377992405,1754652646344,-877.23,0.00018764,2]
[377992406,1754652646354,-895.59,0.00018765,2]
[377992407,1754652646363,-344.64083181,0.000189,2]
[377992408,1754652646373,-739.12,0.00018997,2]
[377992409,1754652646382,-64559.61027335,0.00019,2]
[377992410,1754652646391,-242111.95231155,0.00019,2]
[377992413,1754652646522,-1287.06460514,0.00019,2]
[377992414,1754652646545,-9368.9938305,0.00019,2]
[377992415,1754652694999,227.52,0.00013699,2]
[377992416,1754652699515,1251.9436144,0.00030136,120]
[377992420,1754652793252,152.65,0.00017986,2]
[377992421,1754653041539,317.9,0.00015068,2]
[377992422,1754653041892,317.9,0.00016661,2]
[377992423,1754653046798,185.8,0.00017918,2]
[377992424,1754653108677,525.53769714,0.00016986,2]
[377992425,1754653142712,500.0,0.00016986,2]
[377992426,1754653506715,150.0,0.00017088,2]
[377992427,1754653508023,150.0,0.00017088,2]
[377992428,1754653508073,150.0,0.00017404,2]
[377992429,1754653508108,150.0,0.00017721,2]
[377992431,1754653509539,150.0,0.00017088,2]
[377992432,1754653509583,150.0,0.00017721,2]
[377992433,1754653510026,152.13071975,0.00017088,2]
[377992434,1754653512777,150.0,0.00017088,2]
[377992435,1754653512925,150.0,0.00017088,2]
[377992436,1754653514810,150.0,0.00017088,2]
[377992437,1754653517200,150.0,0.00017088,2]
[377992438,1754653519724,270.62588641,0.00017088,2]
[377992439,1754653519917,157.63647671,0.00017088,2]
[377992440,1754653520959,150.0,0.00017088,2]
[377992441,1754653527648,150.0,0.00017088,2]
[377992442,1754653527821,254.39016981,0.00017088,2]
[377992443,1754653527884,150.0,0.00017088,2]
[377992444,1754653531373,5441.62,0.00017812,2]
[377992445,1754653537945,1000.0,0.000178,2]
[377992446,1754653600412,154.53,0.00017787,2]
[377992473,1754653726709,216.14,0.00013699,2]
[377992474,1754653726772,10000.0,0.00018,5]
[377992475,1754653746006,5016.2899284,0.00018,5]
[377992476,1754653816306,507.0,0.00017131,2]
[377992483,1754653832678,-150.0,0.00018037,2]
[377992486,1754653832689,-150.0,0.00018037,2]
[377992488,1754653832699,-150.0,0.00018037,2]
[377992490,1754653832708,-317.9,0.00018254,2]
[377992492,1754653832718,-150.0,0.00018353,2]
[377992494,1754653832727,-150.0,0.00018353,2]
[377992496,1754653832736,-267.46074303,0.00018653,2]
[377992498,1754653832745,-300.0,0.00018662,2]
[377992500,1754653832754,-1200.0,0.00018662,2]
[377992502,1754653832763,-300.0,0.00018662,2]
[377992504,1754653832772,-2408.78051943,0.00018663,2]
[377992506,1754653832782,-5541.89249793,0.00018663,2]
[377992508,1754653832791,-174.4225622,0.00018663,2]
[377992510,1754653832800,-198.89589986,0.00018663,2]
[377992512,1754653832810,-150.0,0.0001867,2]
[377992514,1754653832819,-2408.78051943,0.00018689,2]
[377992516,1754653832828,-5541.89249791,0.00018689,2]
[377992518,1754653832838,-2408.78051943,0.00018716,2]
[377992520,1754653832847,-5541.89249791,0.00018716,2]
[377992522,1754653832857,-2408.78051943,0.00018742,2]
[377992524,1754653832866,-5541.89249791,0.00018742,2]
[377992527,1754653832875,-151.0,0.00018752,2]
[377992529,1754653832884,-160.0,0.00018752,2]
[377992531,1754653832893,-740.81,0.00018753,2]
[377992533,1754653832903,-1123.56,0.00018762,2]
[377992535,1754653832913,-1328.62,0.00018762,2]
[377992537,1754653832922,-856.67,0.00018762,2]
[377992539,1754653832931,-1087.65,0.00018762,2]
[377992541,1754653832941,-861.66,0.00018762,2]
[377992543,1754653832950,-1868.78,0.00018762,2]
[377992545,1754653832961,-858.28,0.00018762,2]
[377992547,1754653832971,-400.0,0.00018762,2]
[377992549,1754653832980,-1392.93,0.00018762,2]
[377992551,1754653832990,-1070.05,0.00018762,2]
[377992553,1754653832999,-400.0,0.00018762,2]
[377992555,1754653833008,-400.0,0.00018762,2]
[377992557,1754653833017,-400.0,0.00018762,2]
[377992559,1754653833027,-400.0,0.00018762,2]
[377992561,1754653833036,-878.96,0.00018762,2]
[377992563,1754653833046,-400.0,0.00018762,2]
[377992565,1754653833055,-403.26106416,0.00018762,2]
[377992567,1754653833064,-528.31,0.00018762,2]
[377992569,1754653833074,-416.76,0.00018762,2]
[377992571,1754653833083,-400.0,0.00018762,2]
[377992573,1754653833094,-400.0,0.00018762,2]
[377992575,1754653833103,-400.0,0.00018762,2]
[377992577,1754653833113,-408.46396836,0.00018762,2]
[377992579,1754653833122,-757.27,0.00018762,2]
[377992581,1754653833132,-237.96346408,0.00018762,2]
[377992583,1754653833142,-400.0,0.00018762,2]
[377992585,1754653833151,-429.26671692,0.00018762,2]
[377992586,1754653833160,-569.58,0.00018762,2]
[377992588,1754653833170,-402.95754979,0.00018762,2]
[377992590,1754653833179,-409.51756107,0.00018762,2]
[377992592,1754653833188,-412.39901297,0.00018762,2]
[377992594,1754653833199,-400.0,0.00018762,2]
[377992596,1754653833209,-400.0,0.00018762,2]
[377992598,1754653833219,-453.55,0.00018762,2]
[377992600,1754653833229,-425.55,0.00018762,2]
[377992602,1754653833239,-802.83,0.00018762,2]
[377992604,1754653833248,-400.0,0.00018762,2]
[377992606,1754653833257,-1274.69,0.00018762,2]
[377992607,1754653833267,-400.0,0.00018762,2]
[377992608,1754653833276,-400.0,0.00018762,2]
[377992609,1754653833285,-400.0,0.00018762,2]
[377992610,1754653833295,-508.04,0.00018762,2]
[377992611,1754653833304,-2332.7,0.00018762,2]
[377992612,1754653833314,-400.0,0.00018762,2]
[377992613,1754653833323,-433.98,0.00018762,2]
[377992614,1754653833333,-407.56,0.00018762,2]
[377992615,1754653833342,-400.0,0.00018762,2]
[377992616,1754653833351,-1171.25,0.00018762,2]
[377992617,1754653833361,-400.0,0.00018762,2]
[377992618,1754653833370,-400.0,0.00018762,2]
[377992619,1754653833380,-432.14,0.00018762,2]
[377992621,1754653833389,-1040.61,0.00018762,2]
[377992622,1754653833398,-440.82,0.00018762,2]
[377992624,1754653833407,-400.0,0.00018762,2]
[377992626,1754653833417,-757.5,0.00018762,2]
[377992629,1754653833427,-672.83,0.00018762,2]
[377992630,1754653833436,-400.0,0.00018762,2]
[377992632,1754653833445,-598.94,0.00018762,2]
[377992634,1754653833454,-811.82,0.00018762,2]
[377992636,1754653833464,-510.53,0.00018762,2]
[377992637,1754653833473,-400.0,0.00018762,2]
[377992638,1754653833482,-400.0,0.00018762,2]
[377992639,1754653833491,-1008.11,0.00018762,2]
[377992640,1754653833502,-400.0,0.00018762,2]
[377992641,1754653833785,-400.0,0.00018762,2]
[377992642,1754653833796,-755.61,0.00018762,2]
[377992643,1754653833805,-507.71,0.00018762,2]
[377992644,1754653833815,-400.0,0.00018762,2]
[377992645,1754653833825,-400.0,0.00018762,2]
[377992646,1754653833835,-495.69,0.00018762,2]
[377992647,1754653833844,-444.86,0.00018762,2]
[377992648,1754653833854,-400.0,0.00018762,2]
[377992649,1754653833864,-708.32,0.00018762,2]
[377992650,1754653833874,-400.0,0.00018762,2]
[377992651,1754653833883,-199.71406101,0.00018762,2]
[377992652,1754653833897,-200.28593899,0.00018762,2]
[377992653,1754653833907,-535.15,0.00018762,2]
[377992654,1754653833917,-400.0,0.00018762,2]
[377992655,1754653833927,-525.12,0.00018762,2]
[377992656,1754653833937,-400.0,0.00018762,2]
[377992657,1754653833947,-400.0,0.00018762,2]
[377992658,1754653833958,-400.0,0.00018762,2]
[377992659,1754653833971,-1231.3,0.00018762,2]
[377992660,1754653833981,-400.0,0.00018762,2]
[377992661,1754653833991,-400.0,0.00018762,2]
[377992662,1754653834002,-400.0,0.00018762,2]
[377992663,1754653834012,-400.0,0.00018762,2]
[377992664,1754653834021,-400.0,0.00018762,2]
[377992665,1754653834031,-645.4,0.00018762,2]
[377992666,1754653834042,-400.0,0.00018762,2]
[377992667,1754653834052,-574.84,0.00018762,2]
[377992668,1754653834061,-343.49865809,0.00018762,2]
[377992669,1754653834087,-167.73134191,0.00018762,2]
[377992670,1754653834098,-332.99864859,0.00018762,2]
[377992671,1754653834110,-137.29135141,0.00018762,2]
[377992672,1754653834120,-400.0,0.00018762,2]
[377992673,1754653834130,-627.78,0.00018762,2]
[377992674,1754653834140,-400.0,0.00018762,2]
[377992675,1754653834150,-400.0,0.00018762,2]
[377992676,1754653834159,-400.0,0.00018762,2]
[377992677,1754653834169,-400.0,0.00018762,2]
[377992678,1754653834179,-911.74,0.00018762,2]
[377992679,1754653834189,-484.59,0.00018762,2]
[377992680,1754653834200,-400.0,0.00018762,2]
[377992681,1754653834210,-413.32,0.00018762,2]
[377992682,1754653834220,-920.3,0.00018762,2]
[377992683,1754653834230,-400.0,0.00018762,2]
[377992684,1754653834240,-428.13,0.00018762,2]
[377992685,1754653834251,-773.97,0.00018762,2]
[377992686,1754653834261,-400.0,0.00018762,2]
[377992687,1754653834270,-198.35100471,0.00018762,2]
[377992688,1754653834283,-201.64899529,0.00018762,2]
[377992689,1754653834292,-400.0,0.00018762,2]
[377992690,1754653834302,-400.0,0.00018762,2]
[377992691,1754653834312,-400.0,0.00018762,2]
[377992692,1754653834322,-1025.38,0.00018762,2]
[377992693,1754653834332,-400.0,0.00018762,2]
[377992694,1754653834341,-400.0,0.00018762,2]
[377992695,1754653834351,-400.0,0.00018762,2]
[377992696,1754653834360,-400.0,0.00018762,2]
[377992697,1754653834370,-400.0,0.00018762,2]
[377992698,1754653834380,-245.2208,0.00018762,2]
[377992699,1754653834389,-400.0,0.00018762,2]
[377992700,1754653834399,-400.0,0.00018762,2]
[377992701,1754653834409,-400.0,0.00018762,2]
[377992702,1754653834418,-400.0,0.00018762,2]
[377992703,1754653834428,-444.45,0.00018762,2]
[377992704,1754653834437,-959.89,0.00018762,2]
[377992705,1754653834450,-453.62,0.00018762,2]
[377992706,1754653834459,-1018.36,0.00018762,2]
[377992707,1754653834469,-400.0,0.00018762,2]
[377992708,1754653834478,-283.078086,0.00018762,2]
[377992709,1754653834488,-400.0,0.00018762,2]
[377992710,1754653834498,-400.0,0.00018762,2]
[377992711,1754653834508,-428.29,0.00018762,2]
[377992712,1754653834518,-868.28,0.00018762,2]
[377992713,1754653834528,-536.94,0.00018762,2]
[377992714,1754653834537,-400.0,0.00018762,2]
[377992715,1754653834547,-400.0,0.00018762,2]
[377992716,1754653834557,-753.54,0.00018762,2]
[377992717,1754653834567,-175.19163583,0.00018762,2]
[377992718,1754653834577,-400.0,0.00018762,2]
[377992719,1754653834586,-400.0,0.00018762,2]
[377992720,1754653834596,-400.0,0.00018762,2]
[377992721,1754653834606,-400.0,0.00018762,2]
[377992722,1754653834616,-558.73,0.00018762,2]
[377992723,1754653834626,-400.0,0.00018762,2]
[377992724,1754653834635,-1141.25,0.00018762,2]
[377992725,1754653834645,-400.0,0.00018762,2]
[377992726,1754653834655,-216.156146,0.00018762,2]
[377992727,1754653834664,-887.95,0.00018762,2]
[377992728,1754653834674,-400.0,0.00018762,2]
[377992729,1754653834684,-405.51,0.00018762,2]
[377992730,1754653834694,-677.85,0.00018762,2]
[377992731,1754653834703,-543.8498731,0.00018762,2]
[377992732,1754653834713,-400.0,0.00018762,2]
[377992733,1754653834722,-400.0,0.00018762,2]
[377992734,1754653834732,-477.26,0.00018762,2]
[377992735,1754653834742,-924.31,0.00018762,2]
[377992736,1754653834751,-400.0,0.00018762,2]
[377992737,1754653834761,-400.0,0.00018762,2]
[377992738,1754653834771,-635.05,0.00018762,2]
[377992739,1754653834782,-255.48855259,0.00018762,2]
[377992740,1754653834821,-500.0,0.00018761,2]
[377992741,1754653834831,-33.64022597,0.00018761,2]
[377992742,1754653834883,-466.35977403,0.00018761,2]
[377992743,1754653834894,-500.0,0.00018761,2]
[377992744,1754653834904,-500.0,0.00018761,2]
[377992745,1754653834914,-500.0,0.00018761,2]
[377992746,1754653834924,-500.0,0.00018761,2]
[377992747,1754653834934,-506.32947352,0.00018761,2]
[377992748,1754653834944,-144.51144741,0.00018762,2]
[377992749,1754653834953,-73.46790494,0.00018762,2]
[377992750,1754653834968,-326.53209506,0.00018762,2]
[377992751,1754653834977,-305.25743582,0.00018762,2]
[377992752,1754653834988,-542.79234401,0.00018762,2]
[377992753,1754653835000,-657.62537937,0.00018762,2]
[377992754,1754653835037,-500.0,0.00018761,2]
[377992755,1754653835047,-473.22120993,0.00018761,2]
[377992756,1754653835056,-166.6748408,0.00018762,2]
[377992757,1754653835066,-424.56,0.00018762,2]
[377992758,1754653835075,-2959.48143332,0.00018762,2]
[377992759,1754653835086,-259.285,0.00018762,2]
[377992760,1754653835122,-480.49356668,0.00018762,2]
[377992761,1754653835131,-471.47,0.00018762,2]
[377992762,1754653835141,-198.68354296,0.00018762,2]
[377992763,1754653835153,-201.31645704,0.00018762,2]
[377992764,1754653835162,-159.68681979,0.00018762,2]
[377992765,1754653835183,-283.59318021,0.00018762,2]
[377992766,1754653835193,-132.10590267,0.00018762,2]
[377992767,1754653835204,-360.16409733,0.00018762,2]
[377992768,1754653835214,-400.0,0.00018762,2]
[377992769,1754653835223,-179.46304164,0.00018762,2]
[377992770,1754653835251,-500.0,0.00018761,2]
[377992771,1754653835261,-49.19892505,0.00018762,2]
[377992772,1754653835888,2393.69,0.00030136,120]
[377992773,1754653838222,-500.0,0.00018761,2]
[377992774,1754653838233,-500.0,0.00018761,2]
[377992775,1754653838242,-500.0,0.00018761,2]
[377992776,1754653838251,-500.0,0.00018761,2]
[377992777,1754653838262,-500.0,0.00018761,2]
[377992778,1754653838271,-500.0,0.00018761,2]
[377992779,1754653838280,-500.0,0.00018761,2]
[377992780,1754653838289,-500.0,0.00018761,2]
[377992781,1754653838298,-500.0,0.00018761,2]
[377992782,1754653838307,-500.0,0.00018761,2]
[377992783,1754653838316,-344.11015836,0.00018761,2]
[377992784,1754653838327,-500.0,0.00018761,2]
[377992785,1754653838337,-500.0,0.00018761,2]
[377992786,1754653838347,-500.0,0.00018761,2]
[377992787,1754653838356,-500.0,0.00018761,2]
[377992788,1754653838365,-500.0,0.00018761,2]
[377992789,1754653838374,-500.0,0.00018761,2]
[377992790,1754653838383,-500.0,0.00018761,2]
[377992791,1754653838393,-500.0,0.00018761,2]
[377992792,1754653838402,-500.0,0.00018761,2]
[377992793,1754653838412,-500.0,0.00018761,2]
[377992794,1754653838421,-357.96563498,0.00018761,2]
[377992795,1754653838431,-500.0,0.00018761,2]
[377992796,1754653838441,-171.33803331,0.00018762,2]
[377992797,1754653838451,-490.75,0.00018762,2]
[377992798,1754653838460,-433.77,0.00018762,2]
[377992799,1754653838471,-400.0,0.00018762,2]
[377992800,1754653838481,-752.59,0.00018762,2]
[377992801,1754653838492,-400.0,0.00018762,2]
[377992802,1754653838501,-400.0,0.00018762,2]
[377992803,1754653838511,-400.0,0.00018762,2]
[377992804,1754653838521,-400.0,0.00018762,2]
[377992805,1754653838530,-441.02,0.00018762,2]
[377992806,1754653838539,-568.66,0.00018762,2]
[377992807,1754653838549,-400.0,0.00018762,2]
[377992808,1754653838558,-584.61,0.00018762,2]
[377992809,1754653838568,-400.0,0.00018762,2]
[377992810,1754653838578,-400.0,0.00018762,2]
[377992811,1754653838588,-557.12,0.00018762,2]
[377992812,1754653838598,-338.72226048,0.00018762,2]
[377992813,1754653838608,-500.0,0.00018762,2]
[377992814,1754653838617,-194.46346901,0.00018762,2]
[377992815,1754653838626,-168.42402432,0.00018762,2]
[377992816,1754653838637,-431.7336074,0.00018762,2]
[377992818,1754653838646,-344.52486923,0.00018762,2]
[377992819,1754653838656,-400.0,0.00018763,2]
[377992820,1754653838666,-524.49,0.00018763,2]
[377992821,1754653838676,-400.0,0.00018763,2]
[377992822,1754653838686,-465.74006833,0.00018763,2]
[377992823,1754653838695,-400.0,0.00018763,2]
[377992824,1754653838704,-400.0,0.00018763,2]
[377992825,1754653838714,-400.0,0.00018763,2]
[377992826,1754653838724,-400.0,0.00018763,2]
[377992827,1754653838734,-400.0,0.00018763,2]
[377992828,1754653838743,-635.85,0.00018763,2]
[377992829,1754653838755,-168.76581459,0.00018763,2]
[377992830,1754653838764,-400.0,0.00018763,2]
[377992831,1754653838774,-400.0,0.00018763,2]
[377992832,1754653838783,-400.0,0.00018763,2]
[377992833,1754653838793,-400.0,0.00018763,2]
[377992834,1754653838802,-400.0,0.00018763,2]
[377992835,1754653838811,-596.54,0.00018763,2]
[377992836,1754653838821,-403.04,0.00018763,2]
[377992837,1754653838830,-400.0,0.00018763,2]
[377992838,1754653838840,-400.0,0.00018763,2]
[377992839,1754653838849,-400.0,0.00018763,2]
[377992840,1754653838860,-400.0,0.00018763,2]
[377992841,1754653838869,-400.0,0.00018763,2]
[377992842,1754653838878,-400.0,0.00018763,2]
[377992844,1754653838887,-569.74,0.00018763,2]
[377992846,1754653838896,-400.0,0.00018763,2]
[377992847,1754653838906,-400.0,0.00018763,2]
[377992848,1754653838915,-465.43,0.00018763,2]
[377992849,1754653838925,-400.0,0.00018763,2]
[377992850,1754653838934,-400.0,0.00018763,2]
[377992851,1754653838944,-638.09,0.00018763,2]
[377992852,1754653838954,-400.0,0.00018763,2]
[377992853,1754653838970,-594.86,0.00018763,2]
[377992854,1754653838980,-400.0,0.00018763,2]
[377992855,1754653838989,-741.77,0.00018763,2]
[377992856,1754653838999,-400.0,0.00018763,2]
[377992857,1754653839009,-400.0,0.00018763,2]
[377992858,1754653839019,-400.0,0.00018763,2]
[377992859,1754653839028,-163.87015167,0.00018763,2]
[377992860,1754653839037,-400.0,0.00018763,2]
[377992861,1754653839047,-400.0,0.00018763,2]
[377992862,1754653839056,-400.0,0.00018763,2]
[377992863,1754653839065,-400.0,0.00018763,2]
[377992864,1754653839075,-400.0,0.00018763,2]
[377992865,1754653839084,-678.42,0.00018763,2]
[377992866,1754653839095,-600.6,0.00018763,2]
[377992867,1754653839104,-400.0,0.00018763,2]
[377992868,1754653839113,-400.0,0.00018763,2]
[377992869,1754653839123,-400.0,0.00018763,2]